bitfinex/quotes_BTCUSD_20230109
["timestamp","ask_amount","ask_price","bid_price","bid_amount"]
[1673290660680,0.527991,17351.0,17350.0,0.10394559]
[1673290662615,0.14157,17351.0,17350.0,0.12794559]
[1673290663616,0.364891,17351.0,17350.0,0.12794559]
[1673290663870,0.003,17351.0,17350.0,0.12794559]
[1673290667115,0.003,17351.0,17350.0,0.28267087]
[1673290667368,0.003,17351.0,17350.0,0.12794559]
[1673290667875,0.003,17351.0,17350.0,0.70431359]
[1673290668627,0.003,17351.0,17350.0,1.17878064]
[1673290668880,0.003,17351.0,17350.0,2.21906864]
[1673290669135,0.003,17351.0,17350.0,2.31906864]
[1673290669391,0.003,17351.0,17350.0,3.19543664]
[1673290671434,0.003,17351.0,17350.0,3.36777498]
[1673290671723,0.003,17351.0,17350.0,2.89543664]
[1673290673774,0.003,17351.0,17350.0,3.19543664]
[1673290674020,0.003,17351.0,17350.0,2.89543664]
[1673290674798,0.003,17351.0,17350.0,3.36777498]
[1673290675051,0.003,17351.0,17350.0,3.19543664]
[1673290675309,0.00293237,17351.0,17350.0,3.36777498]
[1673290676079,0.00293237,17351.0,17350.0,3.06777498]
[1673290676331,0.00293237,17351.0,17350.0,2.89543664]
[1673290677343,0.00293237,17351.0,17350.0,3.06063664]
[1673290680170,0.00293237,17351.0,17350.0,4.36777498]
[1673290680422,0.00293237,17351.0,17350.0,5.45332245]
[1673290680674,0.00293237,17351.0,17350.0,5.29859717]
[1673290680947,0.00293237,17351.0,17350.0,5.4707749]
[1673290681436,0.55816953,17354.0,17351.0,0.7989206]
[1673290681705,0.55816953,17354.0,17352.0,1.152604]
[1673290681986,0.55816953,17354.0,17353.0,0.4]
[1673290683229,0.55816953,17354.0,17353.0,0.976269]
[1673290683718,0.65216953,17354.0,17353.0,0.976269]
[1673290683977,0.55816953,17354.0,17353.0,0.976269]
[1673290684242,0.65216953,17354.0,17353.0,1.160538]
[1673290684515,0.55816953,17354.0,17352.0,0.976274]
[1673290684809,0.56716953,17354.0,17353.0,0.09]
[1673290685515,0.95816953,17354.0,17352.0,0.576274]
[1673290685815,0.96716953,17354.0,17352.0,0.666274]
[1673290686073,2.03287755,17354.0,17352.0,0.09]
[1673290686302,2.53436325,17354.0,17352.0,0.09]
[1673290686582,1.78619966,17354.0,17351.0,0.40074992]
[1673290686851,2.50492041,17354.0,17351.0,0.40074992]
[1673290687115,3.11060025,17354.0,17353.0,0.088]
[1673290687403,2.98244839,17354.0,17351.0,0.40074992]
[1673290687652,0.361891,17353.0,17352.0,0.088]
[1673290687906,0.361891,17353.0,17351.0,0.40074992]
[1673290687907,0.4,17353.0,17351.0,0.40074992]
[1673290688172,0.976269,17353.0,17351.0,0.48874992]
[1673290688423,1.66609764,17353.0,17351.0,0.00074992]
[1673290688689,1.83774775,17353.0,17351.0,0.00074992]
[1673290688946,2.41401675,17353.0,17351.0,0.08874992]
[1673290690203,1.66609764,17353.0,17351.0,0.00074992]
[1673290690457,1.67509764,17353.0,17351.0,0.08874992]
[1673290690942,1.84674775,17353.0,17351.0,0.08874992]
[1673290691696,2.25136664,17353.0,17351.0,0.08874992]
[1673290692441,2.42301675,17353.0,17351.0,0.08874992]
[1673290693243,0.361891,17352.0,17351.0,0.08874992]
[1673290693512,0.938193,17352.0,17351.0,0.08874992]
[1673290693737,0.576302,17352.0,17351.0,0.08874992]
[1673290693977,0.938193,17352.0,17351.0,0.08874992]
[1673290694221,0.938193,17352.0,17351.0,0.00074992]
[1673290694466,0.585302,17352.0,17351.0,0.08874992]
[1673290694746,1.18308346,17352.0,17351.0,0.08874992]
[1673290695235,1.17408346,17352.0,17351.0,0.00074992]
[1673290695491,0.60678146,17352.0,17351.0,0.08874992]
[1673290696298,0.60678146,17352.0,17351.0,0.00074992]
[1673290696514,1.34573357,17352.0,17351.0,0.00074992]
[1673290696762,1.58308346,17352.0,17351.0,0.08774992]
[1673290697013,2.16362457,17352.0,17351.0,0.09274992]
[1673290697260,1.80173357,17352.0,17351.0,0.09274992]
[1673290699074,2.16362457,17352.0,17351.0,0.09274992]
[1673290699312,1.63008346,17352.0,17351.0,0.09274992]
[1673290700822,1.80173357,17352.0,17351.0,0.09274992]
[1673290701066,2.16362457,17352.0,17351.0,0.09274992]
[1673290701338,1.63008346,17352.0,17351.0,0.09274992]
[1673290701587,2.16362457,17352.0,17351.0,0.09274992]
[1673290701836,1.80173357,17352.0,17351.0,0.09274992]
[1673290702075,2.73992657,17352.0,17351.0,0.09274992]
[1673290702315,2.37803557,17352.0,17351.0,0.09274992]
[1673290704097,4.68283379,17352.0,17351.0,0.09274992]
[1673290704357,4.50195365,17352.0,17351.0,0.09274992]
[1673290704611,4.90691837,17352.0,17351.0,0.09274992]
[1673290704871,4.90691837,17352.0,17351.0,0.09266813]
[1673290705132,4.50017674,17352.0,17351.0,0.09266813]
[1673290705386,4.13828574,17352.0,17351.0,0.09266813]
[1673290705637,4.50017674,17352.0,17351.0,0.09266813]
[1673290705892,4.13828574,17352.0,17351.0,0.09266813]
[1673290706140,4.50017674,17352.0,17351.0,0.09266813]
[1673290706413,4.13828574,17352.0,17351.0,0.09266813]
[1673290706666,4.50017674,17352.0,17351.0,0.09266813]
[1673290706933,4.9812196,17352.0,17351.0,0.09266813]
[1673290707186,4.6193286,17352.0,17351.0,0.09266813]
[1673290707449,4.9812196,17352.0,17351.0,0.09266813]
[1673290707788,4.6193286,17352.0,17351.0,0.09266813]
[1673290707956,3.97540364,17352.0,17351.0,0.09266813]
[1673290708427,3.50271264,17352.0,17351.0,0.09266813]
[1673290708713,3.86460364,17352.0,17351.0,0.09266813]
[1673290708982,3.50271264,17352.0,17351.0,0.09266813]
[1673290709244,3.86460364,17352.0,17351.0,0.09266813]
[1673290709756,3.50271264,17352.0,17351.0,0.09266813]
[1673290710010,3.86460364,17352.0,17351.0,0.09266813]
[1673290710247,3.50271264,17352.0,17351.0,0.092]
[1673290710497,3.69200414,17352.0,17351.0,0.092]
[1673290711017,3.33011314,17352.0,17351.0,0.092]
[1673290711272,3.69200414,17352.0,17351.0,0.092]
[1673290711528,3.33011314,17352.0,17351.0,0.092]
[1673290711782,4.03616511,17352.0,17351.0,0.092]
[1673290712044,3.92332601,17352.0,17351.0,0.092]
[1673290712312,4.40426485,17352.0,17351.0,0.092]
[1673290712609,4.14690466,17352.0,17351.0,0.092]
[1673290712866,4.3377178,17352.0,17351.0,0.092]
[1673290713101,4.3377178,17352.0,17351.0,0.0222627]
[1673290713102,5.08556438,17352.0,17351.0,0.0222627]
[1673290713617,5.60211452,17352.0,17351.0,0.0222627]
[1673290714114,7.06051452,17352.0,17351.0,0.0222627]
[1673290714369,6.54396438,17352.0,17351.0,0.0222627]
[1673290714620,6.48524201,17352.0,17351.0,0.0222627]
[1673290714868,5.93014201,17352.0,17347.0,0.0027165]
[1673290715121,5.93014201,17352.0,17347.0,0.15744178]
[1673290715122,0.1106,17349.0,17347.0,0.15744178]
[1673290715365,0.1106,17349.0,17347.0,0.0027165]
[1673290715366,0.361891,17348.0,17347.0,0.0027165]
[1673290715612,1.663435,17349.0,17347.0,0.0027165]
[1673290716126,0.4,17348.0,17347.0,0.0027165]
[1673290716630,0.466,17348.0,17347.0,0.0027165]
[1673290716904,0.5106,17349.0,17347.0,0.0027165]
[1673290717158,1.663448,17349.0,17347.0,0.0027165]
[1673290717407,0.1106,17349.0,17348.0,0.46240531]
[1673290717674,0.066,17349.0,17348.0,0.61713059]
[1673290717987,0.06588475,17349.0,17348.0,0.46240531]
[1673290718447,1.10651456,17350.0,17348.0,0.46240531]
[1673290718963,0.133,17349.0,17348.0,0.46240531]
[1673290720489,1.10651456,17350.0,17348.0,0.46240531]
[1673290720752,1.10651456,17350.0,17347.0,0.4027165]
[1673290721014,2.15709574,17350.0,17347.0,0.4027165]
[1673290721537,1.68288456,17350.0,17347.0,0.4027165]
[1673290722287,1.74888456,17350.0,17347.0,0.4027165]
[1673290722537,0.77251456,17350.0,17347.0,0.4027165]
[1673290722797,0.77251456,17350.0,17347.0,0.88256209]
[1673290723051,0.77251456,17350.0,17347.0,0.72783681]
[1673290723298,0.78651456,17350.0,17347.0,0.72783681]
[1673290724753,0.78651456,17350.0,17347.0,1.88075681]
[1673290727806,0.08,17350.0,17348.0,0.56068775]
[1673290728061,0.08,17350.0,17348.0,1.71351575]
[1673290728274,0.08,17350.0,17349.0,0.4]
[1673290729314,0.00015,17351.0,17349.0,0.4]
[1673290729578,0.066,17350.0,17349.0,0.4]
[1673290729834,0.066,17350.0,17349.0,1.552802]
[1673290730099,1.25141497,17352.0,17349.0,1.552802]
[1673290730364,1.25141497,17352.0,17349.0,1.70752728]
[1673290730875,1.25141497,17352.0,17349.0,2.04299986]
[1673290730876,0.67991461,17352.0,17349.0,2.04299986]
[1673290731130,0.67991461,17352.0,17349.0,2.61940186]
[1673290731683,0.67991461,17352.0,17350.0,0.52701735]
[1673290731932,0.67991461,17352.0,17351.0,0.576335]
[1673290732181,0.68691461,17352.0,17351.0,1.15267]
[1673290732444,0.67991461,17352.0,17351.0,1.55267]
[1673290732669,0.69391461,17352.0,17351.0,1.55267]
[1673290732981,0.67991461,17352.0,17351.0,1.55267]
[1673290733249,0.74591461,17352.0,17351.0,1.55267]
[1673290733747,0.066,17352.0,17351.0,2.129005]
[1673290733999,0.066,17352.0,17351.0,2.239805]
[1673290735807,0.066,17352.0,17351.0,2.24064921]
[1673290736307,0.066,17352.0,17351.0,2.239805]
[1673290736551,0.066,17352.0,17351.0,2.129005]
[1673290737841,0.066,17352.0,17351.0,2.12984921]
[1673290738438,0.066,17352.0,17351.0,1.15267]
[1673290739109,0.066,17352.0,17350.0,1.27648446]
[1673290739363,0.066,17352.0,17350.0,1.85283646]
[1673290740102,0.63245818,17353.0,17350.0,1.85283646]
[1673290740339,0.407,17352.0,17350.0,1.27648446]
[1673290740588,0.007,17352.0,17350.0,1.27648446]
[1673290741792,1.95651654,17353.0,17350.0,1.27648446]
[1673290742036,0.4,17352.0,17350.0,1.27648446]
[1673290742808,1.96351654,17353.0,17350.0,1.27648446]
[1673290743053,1.95651654,17353.0,17350.0,1.27648446]
[1673290743307,0.007,17352.0,17350.0,1.27648446]
[1673290743585,1.95651654,17353.0,17350.0,1.27648446]
[1673290744557,1.96351654,17353.0,17350.0,1.27648446]
[1673290745294,0.63172891,17352.0,17349.0,1.152755]
[1673290745540,2.0220248,17352.0,17349.0,1.152755]
[1673290745792,2.0220248,17352.0,17349.0,0.576379]
[1673290746067,2.4220248,17352.0,17349.0,0.976379]
[1673290746316,2.18434691,17352.0,17349.0,0.976379]
[1673290746834,2.19834691,17352.0,17349.0,0.976379]
[1673290747084,2.36984727,17352.0,17349.0,0.4]
[1673290747343,0.4,17351.0,17348.0,1.66853009]
[1673290747587,0.63767789,17351.0,17348.0,1.66853009]
[1673290748104,0.4,17351.0,17349.0,0.4]
[1673290748407,1.60803091,17352.0,17349.0,0.4]
[1673290748635,0.017,17351.0,17349.0,0.55472528]
[1673290748887,0.4,17351.0,17349.0,0.4]
[1673290749139,0.414,17351.0,17349.0,0.4]
[1673290749882,0.014,17351.0,17349.0,0.4]
[1673290753795,0.014,17351.0,17350.0,0.92177572]
[1673290753796,0.01392143,17351.0,17350.0,0.92177572]
[1673290754362,0.01392143,17351.0,17350.0,1.49814372]
[1673290755166,0.00015,17353.0,17350.0,1.89814372]
[1673290755417,0.007,17351.0,17350.0,2.629237]
[1673290755678,0.007,17351.0,17350.0,1.87451172]
[1673290756464,1.17256819,17354.0,17350.0,1.87451172]
[1673290756721,0.017,17353.0,17350.0,2.029237]
[1673290756983,0.4,17353.0,17351.0,0.4]
[1673290757243,1.42981872,17354.0,17351.0,0.976329]
[1673290757510,1.42981872,17354.0,17351.0,1.13105428]
[1673290757771,1.17256819,17354.0,17351.0,1.13105428]
[1673290757992,1.17256819,17354.0,17351.0,0.976329]
[1673290758246,1.17256819,17354.0,17351.0,1.552664]
[1673290758513,2.00605772,17354.0,17351.0,1.552664]
[1673290758794,2.02005772,17354.0,17351.0,1.552664]
[1673290759280,1.76280719,17354.0,17351.0,1.552664]
[1673290760543,2.02005772,17354.0,17351.0,1.552664]
[1673290762640,1.04381872,17354.0,17351.0,2.25672122]
[1673290762858,0.61506783,17354.0,17351.0,2.10199594]
[1673290764145,0.61506783,17354.0,17352.0,0.4346081]
[1673290764410,0.61506783,17354.0,17352.0,1.0109011]
[1673290764669,0.61506783,17354.0,17353.0,0.4]
[1673290765208,0.04328394,17354.0,17353.0,0.4]
[1673290765435,0.05028394,17354.0,17353.0,0.976269]
[1673290765685,0.04328394,17354.0,17353.0,0.976269]
[1673290765953,0.10928394,17354.0,17353.0,0.976269]
[1673290767979,0.10928394,17354.0,17353.0,1.552538]
[1673290773160,0.10928394,17354.0,17353.0,1.152538]
[1673290774430,0.10928394,17354.0,17353.0,0.576269]
[1673290774681,0.10928394,17354.0,17352.0,1.4108921]
[1673290774939,7.371e-05,17353.0,17352.0,1.9871731]
[1673290776193,0.03474367,17353.0,17352.0,1.9871731]
[1673290776458,0.04174367,17353.0,17352.0,1.9871731]
[1673290776768,0.04174367,17353.0,17352.0,1.4108891]
[1673290777460,0.03474367,17353.0,17352.0,1.4108891]
[1673290777735,0.04874367,17353.0,17352.0,1.4108891]
[1673290781343,0.04866336,17353.0,17352.0,1.4108891]
[1673290784618,0.56930125,17353.0,17351.0,0.4]
[1673290784876,0.56930125,17353.0,17350.0,1.89788878]
[1673290784877,0.96240987,17353.0,17350.0,1.46958725]
[1673290785124,1.20008776,17353.0,17350.0,1.46958725]
[1673290785376,1.20008776,17353.0,17350.0,0.89322725]
[1673290785630,0.94840987,17353.0,17351.0,0.4]
[1673290786617,0.96540987,17353.0,17351.0,0.4]
[1673290786882,0.94840987,17353.0,17351.0,0.4]
[1673290787144,0.95540987,17353.0,17351.0,0.4]
[1673290787657,1.53168387,17353.0,17351.0,0.4]
[1673290787922,1.53168387,17353.0,17350.0,0.89322725]
[1673290788260,2.34563076,17353.0,17350.0,0.89322725]
[1673290788454,2.27945323,17353.0,17350.0,0.89322725]
[1673290788705,2.51713112,17353.0,17350.0,0.89322725]
[1673290788956,2.27945323,17353.0,17350.0,1.46959525]
[1673290789493,2.27245323,17353.0,17350.0,1.46959525]
[1673290789726,0.85095023,17353.0,17351.0,0.4332284]
[1673290789990,0.67944987,17353.0,17351.0,0.58795368]
[1673290790239,0.04866336,17353.0,17351.0,1.18199352]
[1673290790515,0.04866336,17353.0,17352.0,0.4]
[1673290791252,0.03466336,17353.0,17352.0,0.4]
[1673290791504,0.04166336,17353.0,17352.0,0.4]
[1673290792519,0.04166336,17353.0,17352.0,0.39989219]
[1673290792520,0.03466336,17353.0,17352.0,0.39989219]
[1673290792776,0.10066336,17353.0,17352.0,0.39989219]
[1673290795665,0.10066336,17353.0,17352.0,1.14862531]
[1673290796209,0.10066336,17353.0,17352.0,0.57232331]
[1673290796465,0.10066336,17353.0,17352.0,1.72492731]
[1673290797513,0.10066336,17353.0,17352.0,5.90005264]
[1673290797769,0.10066336,17353.0,17352.0,6.00600013]
[1673290798022,0.10066336,17353.0,17352.0,5.57527396]
[1673290798279,0.10066336,17353.0,17352.0,6.00688054]
[1673290798527,0.10066336,17353.0,17352.0,5.57527396]
[1673290798528,0.03466336,17353.0,17352.0,5.57527396]
[1673290798780,0.04866336,17353.0,17352.0,5.57627396]
[1673290799031,0.03466336,17353.0,17352.0,5.57527396]
[1673290799277,0.04866336,17353.0,17352.0,6.00787925]
[1673290800308,0.04683336,17353.0,17352.0,6.00787925]
[1673290801109,0.04683336,17353.0,17352.0,5.57627396]
[1673290802099,0.04683336,17353.0,17352.0,5.51467293]
[1673290802616,0.04683336,17353.0,17352.0,5.79187293]
[1673290802861,0.04683336,17353.0,17352.0,6.05739716]
[1673290803636,0.04683336,17353.0,17352.0,6.40258884]
[1673290804128,0.04683336,17353.0,17352.0,6.40258956]
[1673290804940,0.04683336,17353.0,17352.0,6.05739716]
[1673290805446,0.00236178,17354.0,17353.0,0.42095626]
[1673290805693,0.00236178,17354.0,17353.0,4.35262655]
[1673290806729,0.01736178,17354.0,17353.0,4.35562655]
[1673290807994,0.00236178,17354.0,17353.0,4.35262655]
[1673290808265,0.01836178,17354.0,17353.0,4.35562655]
[1673290808768,0.01836178,17354.0,17353.0,4.35647067]
[1673290809807,0.01836178,17354.0,17353.0,4.18376441]
[1673290810297,0.01836178,17354.0,17353.0,4.35647067]
[1673290811292,0.01836178,17354.0,17353.0,4.18372205]
[1673290811551,0.01836178,17354.0,17353.0,3.63065755]
[1673290811813,0.01836178,17354.0,17353.0,3.07178399]
[1673290814607,0.01836178,17354.0,17353.0,3.37178399]
[1673290814864,0.01836178,17354.0,17353.0,3.07178399]
[1673290815850,0.01836178,17354.0,17353.0,3.37178399]
[1673290816105,0.01836178,17354.0,17353.0,4.17295348]
[1673290816619,0.01836178,17354.0,17353.0,4.23086051]
[1673290818680,0.01836178,17354.0,17353.0,3.4288469]
[1673290818959,0.01836178,17354.0,17353.0,1.16971675]
[1673290819686,0.01836178,17354.0,17353.0,1.00361675]
[1673290822220,0.01836178,17354.0,17353.0,1.57988575]
[1673290822469,0.01836178,17354.0,17353.0,2.15615475]
[1673290822778,0.04973546,17354.0,17353.0,2.15615475]
[1673290822978,0.04973546,17354.0,17353.0,2.32857087]
[1673290823236,0.04973546,17354.0,17353.0,2.45615475]
[1673290823477,0.04973546,17354.0,17353.0,2.73242375]
[1673290824215,0.04973546,17354.0,17353.0,2.90483987]
[1673290824696,0.04973546,17354.0,17353.0,2.73242375]
[1673290824936,0.04973546,17354.0,17353.0,2.90483987]
[1673290825432,0.04973546,17354.0,17353.0,3.20483987]
[1673290825672,0.04973546,17354.0,17353.0,2.90483987]
[1673290825924,0.04973546,17354.0,17353.0,3.20483987]
[1673290826174,0.04966743,17354.0,17353.0,2.90483987]
[1673290826678,0.04966743,17354.0,17353.0,3.20483987]
[1673290826927,0.04966743,17354.0,17353.0,2.90483987]
[1673290827955,0.04966743,17354.0,17353.0,2.73242375]
[1673290828454,0.04966743,17354.0,17353.0,2.90483987]
[1673290828952,0.04966743,17354.0,17353.0,2.73242375]
[1673290829208,0.04966743,17354.0,17353.0,2.15607637]
[1673290829465,0.04966743,17354.0,17353.0,2.73234537]
[1673290830450,0.04966743,17354.0,17353.0,2.90476149]
[1673290832423,0.04966743,17354.0,17353.0,3.70887402]
[1673290832670,0.04966743,17354.0,17353.0,4.18162264]
[1673290833163,0.04966743,17354.0,17353.0,4.35420541]
[1673290834161,0.04966743,17354.0,17353.0,4.35424216]
[1673290834405,0.04966743,17354.0,17353.0,4.00904067]
[1673290835397,0.04966743,17354.0,17353.0,4.35438208]
[1673290835649,0.04966743,17354.0,17353.0,4.00904067]
[1673290837717,0.04966743,17354.0,17353.0,3.57758434]
[1673290837968,0.04966743,17354.0,17353.0,4.0094239]
[1673290838212,0.04966743,17354.0,17353.0,3.7094239]
[1673290838458,0.04966743,17354.0,17353.0,4.0094239]
[1673290838711,0.04966743,17354.0,17353.0,4.35488732]
[1673290838961,0.04966743,17354.0,17353.0,4.05488732]
[1673290839214,0.04966743,17354.0,17353.0,4.35488732]
[1673290839458,0.04966743,17354.0,17353.0,4.0094239]
[1673290839998,0.04966743,17354.0,17353.0,4.57758434]
[1673290840505,0.04966743,17354.0,17353.0,5.00938543]
[1673290841261,0.04966743,17354.0,17353.0,5.00938684]
[1673290844431,0.04966743,17354.0,17353.0,4.57758434]
[1673290844686,0.04966743,17354.0,17353.0,5.00937412]
[1673290845221,0.04966743,17354.0,17353.0,4.57758434]
[1673290846346,0.0063744,17355.0,17354.0,0.8824865]
[1673290846566,0.0063744,17355.0,17354.0,3.58816526]
[1673290846805,0.0063744,17355.0,17354.0,3.88816526]
[1673290847259,0.0063744,17355.0,17354.0,4.23355251]
[1673290847749,0.0193744,17355.0,17354.0,4.25155251]
[1673290849717,0.0193744,17355.0,17354.0,3.95155251]
[1673290849972,0.0193744,17355.0,17354.0,3.77885298]
[1673290850485,0.0193744,17355.0,17354.0,3.60615306]
[1673290851478,0.2891344,17355.0,17354.0,2.22564583]
[1673290851989,0.2891344,17355.0,17354.0,0.5004865]
[1673290852752,0.0193744,17355.0,17354.0,0.5004865]
[1673290853520,0.0193744,17355.0,17354.0,1.0767225]
[1673290855055,0.0193744,17355.0,17354.0,1.6529585]
[1673290856280,0.0193744,17355.0,17354.0,1.82564583]
[1673290857059,0.1505644,17355.0,17354.0,1.19092851]
[1673290857309,0.1505644,17355.0,17354.0,0.03845651]
[1673290860604,0.32206476,17355.0,17354.0,0.03845651]
[1673290860862,1.14531529,17355.0,17354.0,0.03845651]
[1673290861105,2.55861689,17355.0,17354.0,0.03845651]
[1673290861351,2.08340829,17355.0,17354.0,0.03845651]
[1673290861605,1.82615776,17355.0,17354.0,0.03845651]
[1673290861857,2.08340829,17355.0,17354.0,0.03845651]
[1673290862618,2.07040829,17355.0,17354.0,0.02045651]
[1673290862862,2.07640829,17355.0,17354.0,0.03445651]
[1673290863100,2.65261029,17355.0,17354.0,0.03445651]
[1673290864086,2.38935976,17355.0,17354.0,0.02045651]
[1673290864326,2.69861029,17355.0,17354.0,0.02345651]
[1673290866047,4.22319792,17355.0,17354.0,0.02345651]
[1673290866294,4.80789992,17355.0,17354.0,0.02345651]
[1673290866553,4.37859329,17355.0,17354.0,0.02345651]
[1673290867301,4.55009364,17355.0,17354.0,0.02345651]
[1673290868109,4.37887082,17355.0,17354.0,0.02345651]
[1673290868357,4.55009364,17355.0,17354.0,0.02345651]
[1673290869094,4.07488504,17355.0,17354.0,0.02345651]
[1673290869346,3.90360111,17355.0,17354.0,0.02345651]
[1673290869608,4.0051466,17355.0,17354.0,0.02345651]
[1673290869853,4.0051466,17355.0,17354.0,0.02333823]
[1673290870118,4.4803552,17355.0,17354.0,0.02333823]
[1673290870381,4.81773913,17355.0,17354.0,0.02333823]
[1673290870634,5.24613927,17355.0,17354.0,0.02333823]
[1673290871882,4.98923949,17355.0,17354.0,0.02333823]
[1673290872133,4.74814786,17355.0,17354.0,0.02333823]
[1673290872375,4.95647381,17355.0,17354.0,0.02333823]
[1673290872628,5.8171671,17355.0,17354.0,0.02333823]
[1673290873142,6.28171724,17355.0,17354.0,0.02033823]
[1673290873890,6.17880456,17355.0,17354.0,0.02033823]
[1673290874154,4.80156113,17355.0,17354.0,0.02033823]
[1673290874644,4.93756113,17355.0,17354.0,0.02033823]
[1673290876135,4.40339697,17355.0,17354.0,0.02033823]
[1673290876382,5.83850511,17355.0,17354.0,0.02033823]
[1673290877146,6.43929756,17355.0,17354.0,0.02033823]
[1673290877407,5.06209645,17355.0,17354.0,0.02033823]
[1673290877663,5.03105367,17355.0,17354.0,0.02033823]
[1673290877908,5.37378802,17355.0,17354.0,0.02033823]
[1673290878885,5.37348307,17355.0,17354.0,0.02033823]
[1673290879134,5.11790654,17355.0,17354.0,0.02033823]
[1673290879634,5.37487,17355.0,17354.0,0.02033823]
[1673290879876,5.95287733,17355.0,17354.0,0.02033823]
[1673290880121,5.9972976,17355.0,17354.0,0.02033823]
[1673290880359,6.25284712,17355.0,17354.0,0.02033823]
[1673290880859,5.9972976,17355.0,17354.0,0.02033823]
[1673290881343,6.25255749,17355.0,17354.0,0.02033823]
[1673290881591,5.9972976,17355.0,17354.0,0.02033823]
[1673290882583,6.2524865,17355.0,17354.0,0.02033823]
[1673290885226,5.9972976,17355.0,17354.0,0.02033823]
[1673290885480,6.25247907,17355.0,17354.0,0.02033823]
[1673290886232,5.6972976,17355.0,17354.0,0.02033823]
[1673290886479,4.94637877,17355.0,17354.0,0.02033823]
[1673290887233,4.78037877,17355.0,17354.0,0.02033823]
[1673290887737,4.95190654,17355.0,17354.0,0.02033823]
[1673290887985,5.50611653,17355.0,17354.0,0.02033823]
[1673290888238,5.57542916,17355.0,17354.0,0.02033823]
[1673290888737,5.23269481,17355.0,17354.0,0.02033823]
[1673290888997,4.80428507,17355.0,17354.0,0.02033823]
[1673290889242,4.20349262,17355.0,17354.0,0.02033823]
[1673290889488,4.73204307,17355.0,17354.0,0.02033823]
[1673290889985,5.24859321,17355.0,17354.0,0.02026323]
[1673290891266,4.73204307,17355.0,17354.0,0.02026323]
[1673290892025,5.24859321,17355.0,17354.0,0.02026323]
[1673290892511,4.73204307,17355.0,17354.0,0.02026323]
[1673290892768,5.24859321,17355.0,17354.0,0.02026323]
[1673290894528,4.73204307,17355.0,17354.0,0.02026323]
[1673290896298,4.36273044,17355.0,17354.0,0.02026323]
[1673290897066,4.66273044,17355.0,17354.0,0.02026323]
[1673290897312,4.35362184,17355.0,17354.0,0.02026323]
[1673290897560,4.82883044,17355.0,17354.0,0.02026323]
[1673290897806,4.52883044,17355.0,17354.0,0.02026323]
[1673290898039,5.34538058,17355.0,17354.0,0.02026323]
[1673290898809,6.20585554,17355.0,17354.0,0.02026323]
[1673290899045,5.34538058,17355.0,17354.0,0.02026323]
[1673290899796,4.52883044,17355.0,17354.0,0.02026323]
[1673290900039,6.20582734,17355.0,17354.0,0.02026323]
[1673290900539,5.90582734,17355.0,17354.0,0.02026323]
[1673290901553,5.04538058,17355.0,17354.0,0.02026323]
[1673290901793,5.90579971,17355.0,17354.0,0.02026323]
[1673290904549,6.20579971,17355.0,17354.0,0.02026323]
[1673290905046,6.20579971,17355.0,17350.0,0.38028021]
[1673290905297,0.33710925,17351.0,17349.0,1.13525]
[1673290905557,0.361891,17350.0,17349.0,0.3]
[1673290905830,0.59956889,17350.0,17348.0,1.5493207]
[1673290906075,0.23767789,17350.0,17348.0,1.5493207]
[1673290906321,1.58198113,17351.0,17348.0,1.5493207]
[1673290906575,1.58196213,17351.0,17348.0,1.5493207]
[1673290906818,0.008,17350.0,17349.0,0.002]
[1673290907502,1.58195713,17351.0,17348.0,1.7154207]
[1673290907758,0.015,17350.0,17348.0,1.7174207]
[1673290908792,0.044,17350.0,17348.0,1.7154207]
[1673290909062,0.74808025,17350.0,17348.0,1.1390027]
[1673290909578,0.17970925,17350.0,17348.0,1.1410027]
[1673290909829,0.75607825,17350.0,17348.0,1.1410027]
[1673290910841,1.01364213,17350.0,17348.0,1.14093131]
[1673290911870,0.17170925,17349.0,17348.0,1.14093131]
[1673290912114,0.84193288,17350.0,17348.0,1.14093131]
[1673290912115,1.75707364,17350.0,17348.0,1.14093131]
[1673290912369,1.01365513,17350.0,17348.0,1.14093131]
[1673290912843,1.00565513,17350.0,17348.0,1.14093131]
[1673290913066,0.008,17349.0,17348.0,1.13893131]
[1673290913585,0.008,17349.0,17348.0,1.14093131]
[1673290914042,1.01365513,17350.0,17348.0,1.14093131]
[1673290914292,1.00565513,17350.0,17348.0,1.13893131]
[1673290915305,1.74907364,17350.0,17348.0,0.73893131]
[1673290915546,1.74907364,17350.0,17348.0,0.17816047]
[1673290915547,0.57170925,17349.0,17348.0,0.17816047]
[1673290915802,0.42927313,17349.0,17348.0,0.18016047]
[1673290916055,0.17170925,17349.0,17348.0,0.18016047]
[1673290916306,0.17170925,17349.0,17348.0,0.17816047]
[1673290916551,1.65788868,17350.0,17348.0,0.17816047]
[1673290916808,0.008,17349.0,17348.0,0.18016047]
[1673290918103,0.17970925,17349.0,17348.0,0.18016047]
[1673290918851,0.17170925,17349.0,17348.0,0.17816047]
[1673290919100,0.17170925,17349.0,17348.0,0.18016047]
[1673290919351,0.17170925,17349.0,17348.0,0.17816047]
[1673290919602,0.17970925,17349.0,17348.0,0.18016047]
[1673290920076,0.75611125,17349.0,17348.0,0.18016047]
[1673290920558,0.17970925,17349.0,17348.0,0.18016047]
[1673290920901,0.008,17349.0,17348.0,0.18016047]
[1673290925879,0.008,17349.0,17348.0,4.05516549]
[1673290926144,0.008,17349.0,17348.0,4.20487192]
[1673290926400,0.008,17349.0,17348.0,3.77314013]
[1673290926650,0.008,17349.0,17348.0,4.07314013]
[1673290926898,0.008,17349.0,17348.0,4.24583966]
[1673290928163,0.008,17349.0,17348.0,3.77319443]
[1673290928972,0.008,17349.0,17348.0,4.24583966]
[1673290930283,0.008,17349.0,17348.0,4.0731306]
[1673290931601,0.008,17349.0,17348.0,3.7731306]
[1673290931849,0.008,17349.0,17348.0,3.60040686]
[1673290932612,0.008,17349.0,17348.0,4.0731306]
[1673290933122,0.008,17349.0,17348.0,4.04188663]
[1673290935183,0.008,17349.0,17348.0,4.21459569]
[1673290935438,0.008,17349.0,17348.0,4.04179444]
[1673290935698,0.008,17349.0,17348.0,4.21459569]
[1673290936206,0.008,17349.0,17348.0,3.86920844]
[1673290936208,0.008,17349.0,17348.0,4.21442196]
[1673290937263,0.008,17349.0,17348.0,4.04832196]
[1673290939533,0.008,17349.0,17348.0,4.30716167]
[1673290939783,0.008,17349.0,17348.0,4.04832196]
[1673290940023,0.008,17349.0,17348.0,3.87543048]
[1673290940788,0.008,17349.0,17348.0,4.22474645]
[1673290941770,0.008,17349.0,17348.0,4.48355322]
[1673290942023,0.008,17349.0,17348.0,4.05182143]
[1673290946338,0.008,17349.0,17348.0,3.57911298]
[1673290946591,0.008,17349.0,17348.0,3.87911298]
[1673290946830,0.008,17349.0,17348.0,3.57911298]
[1673290947331,0.008,17349.0,17348.0,3.68149851]